[Event "Championnat du monde jeunes U12F"]
[Date "2024.11.22"]
[White "Jung, Minju"]
[Black "Mrad, Anahid"]
[WhiteElo "1457"]
[BlackElo "1558"]
[Round "7.39"]
[Result "0-1"]
[TimeControl "5400+30"]

1. e4 {[%clk 1:30:46]} 1... e5 {[%clk 1:30:52]} 2. Nf3 {[%clk 1:30:27]} 2... Nc6
{[%clk 1:31:14]} 3. Bc4 {[%clk 1:30:15]} 3... Nf6 {[%clk 1:31:37]} 4. d3 {[%clk
1:30:06]} 4... Bc5 {[%clk 1:32:00]} 5. c3 {[%clk 1:29:43]} 5... d6 {[%clk
1:32:18]} 6. O-O {[%clk 1:26:23]} 6... O-O {[%clk 1:32:08]} 7. Re1 {[%clk
1:23:50]} 7... Bg4 {[%clk 1:27:51]} 8. Nbd2 {[%clk 1:21:17]} 8... Re8 {[%clk
1:26:18]} 9. h3 {[%clk 1:19:30]} 9... Bh5 {[%clk 1:25:40]} 10. Nf1 {[%clk
1:17:42]} 10... d5 {[%clk 1:23:53]} 11. exd5 {[%clk 1:08:41]} 11... Nxd5 {[%clk
1:23:54]} 12. Ng3 {[%clk 1:02:41]} 12... Bg6 {[%clk 1:22:54]} 13. b4 {[%clk
0:51:17]} 13... Nxc3 {[%clk 1:17:07]} 14. Qb3 {[%clk 0:41:58]} 14... Bd4 {[%clk
0:53:25]} 15. Bb2 {[%clk 0:32:43]} 15... b5 {[%clk 0:50:09]} 16. Bxc3 {[%clk
0:26:20]} 16... bxc4 {[%clk 0:48:51]} 17. dxc4 {[%clk 0:25:04]} 17... Bxc3
{[%clk 0:39:53]} 18. Qxc3 {[%clk 0:24:50]} 18... e4 {[%clk 0:37:04]} 19. Nd2
{[%clk 0:21:15]} 19... Qd3 {[%clk 0:34:09]} 20. Qxd3 {[%clk 0:12:39]} 20... exd3
{[%clk 0:34:18]} 21. f4 {[%clk 0:07:20]} 21... f5 {[%clk 0:30:58]} 22. Rab1
{[%clk 0:07:18]} 22... Nd4 {[%clk 0:27:28]} 23. Kf2 {[%clk 0:04:28]} 23... Ne6
{[%clk 0:19:08]} 24. Kf3 {[%clk 0:03:38]} 24... Rad8 {[%clk 0:18:31]} 25. Re3
{[%clk 0:02:49]} 25... Rd4 {[%clk 0:18:16]} 26. Kf2 {[%clk 0:01:12]} 26... Rxf4+
{[%clk 0:18:22]} 27. Kg1 {[%clk 0:01:17]} 27... Rd4 {[%clk 0:18:23]} 28. Rbe1
{[%clk 0:01:18]} 28... Kf7 {[%clk 0:15:40]} 29. Nh1 {[%clk 0:01:01]} 29... Rdd8
{[%clk 0:12:29]} 30. Nf2 {[%clk 0:01:09]} 30... Nf4 {[%clk 0:12:16]} 31. Rxe8
{[%clk 0:01:14]} 31... Rxe8 {[%clk 0:12:21]} 32. Rxe8 {[%clk 0:01:40]} 32...
Kxe8 {[%clk 0:12:45]} 33. Kh2 {[%clk 0:01:58]} 33... Ke7 {[%clk 0:12:23]} 34.
Kg3 {[%clk 0:02:20]} 34... Ne2+ {[%clk 0:12:41]} 35. Kf3 {[%clk 0:02:38]} 35...
f4 {[%clk 0:12:35]} 36. Nfe4 {[%clk 0:00:40]} 36... Bxe4+ {[%clk 0:07:43]} 37.
Kxe4 {[%clk 0:01:03]} 37... Nc3+ {[%clk 0:07:52]} 38. Kxd3 {[%clk 0:01:13]}
38... Nxa2 {[%clk 0:10:12]} 39. b5 {[%clk 0:01:02]} 39... Ke6 {[%clk 0:09:10]}
40. Ke4 {[%clk 0:01:05]} 40... g5 {[%clk 0:09:16]} 41. Nf3 {[%clk 0:01:12]}
41... Kf6 {[%clk 0:07:54]} 42. Kd5 {[%clk 0:01:12]} 42... Nb4+ {[%clk 0:08:02]}
43. Kc5 {[%clk 0:01:31]} 43... a5 {[%clk 0:08:15]} 44. bxa6 {[%clk 0:01:52]}
44... Nxa6+ {[%clk 0:08:37]} 45. Kc6 {[%clk 0:02:09]} 45... h5 {[%clk 0:08:38]}
46. Kb7 {[%clk 0:02:29]} 46... g4 {[%clk 0:08:39]} 47. hxg4 {[%clk 0:02:33]}
47... hxg4 {[%clk 0:09:03]} 48. Kxa6 {[%clk 0:03:00]} 48... gxf3 {[%clk
0:09:16]} 49. gxf3 {[%clk 0:03:21]} 49... Ke5 {[%clk 0:09:29]} 50. Kb5 {[%clk
0:03:31]} 50... Kd4 {[%clk 0:09:29]} 51. c5 {[%clk 0:03:05]} 51... Kd5 {[%clk
0:09:36]} 52. c6 {[%clk 0:03:03]} 52... Kd6 {[%clk 0:09:28]} 53. Kb4 {[%clk
0:03:10]} 53... Kxc6 {[%clk 0:09:41]} 54. Kc4 {[%clk 0:03:34]} 54... Kb6 {[%clk
0:08:45]} 55. Kb4 {[%clk 0:03:42]} 55... c5+ {[%clk 0:09:00]} 56. Kc4 {[%clk
0:04:05]} 56... Kc6 {[%clk 0:09:15]} 57. Kc3 {[%clk 0:04:26]} 57... Kd5 {[%clk
0:09:27]} 58. Kd3 {[%clk 0:03:59]} 58... c4+ {[%clk 0:09:47]} 59. Kc3 {[%clk
0:04:17]} 59... Kc5 {[%clk 0:10:13]} 60. Kc2 {[%clk 0:04:40]} 60... Kd4 {[%clk
0:10:36]} 61. Kd2 {[%clk 0:04:39]} 61... c3+ {[%clk 0:11:01]} 62. Kc2 {[%clk
0:04:55]} 62... Ke3 {[%clk 0:11:13]} 63. Kxc3 {[%clk 0:05:19]} 63... Kxf3 {[%clk
0:11:38]} 64. Kd3 {[%clk 0:05:35]} 64... Kg2 {[%clk 0:12:01]} 65. Ke2 {[%clk
0:05:54]} 65... f3+ {[%clk 0:12:17]} 66. Ke3 {[%clk 0:06:21]} 66... f2 {[%clk
0:12:38]} 67. Ke4 {[%clk 0:06:49]} 67... f1=Q {[%clk 0:12:58]} 68. Ke5 {[%clk
0:07:14]} 68... Qc4 {[%clk 0:13:16]} 69. Kf5 {[%clk 0:07:38]} 69... Qe2 {[%clk
0:13:30]} 70. Kf4 {[%clk 0:08:00]} 70... Kf2 {[%clk 0:13:48]} 71. Kf5 {[%clk
0:08:20]} 71... Kf3 {[%clk 0:14:07]} 72. Kg5 {[%clk 0:08:42]} 72... Qe6 {[%clk
0:14:19]} 73. Kh5 {[%clk 0:08:57]} 73... Kf4 {[%clk 0:14:21]} 74. Kh4 {[%clk
0:09:21]} 74... Qg4# 0-1

[Variant "Standard"]
[Site "Europe Echecs"]

[Event "Championnat du monde jeunes U12F"]
[Date "2024.11.22"]
[White "Hrckova, Anna"]
[Black "Dzafic, Merjem"]
[WhiteElo "1441"]
[BlackElo "1568"]
[Round "7.41"]
[Result "1-0"]
[TimeControl "5400+30"]

1. e4 {[%clk 1:30:58]} 1... c6 {[%clk 1:30:49]} 2. d4 {[%clk 1:31:24]} 2... d5
{[%clk 1:31:00]} 3. exd5 {[%clk 1:31:47]} 3... cxd5 {[%clk 1:31:14]} 4. Bd3
{[%clk 1:32:09]} 4... Nc6 {[%clk 1:31:21]} 5. c3 {[%clk 1:32:31]} 5... Nf6
{[%clk 1:31:13]} 6. h3 {[%clk 1:32:56]} 6... e6 {[%clk 1:29:00]} 7. Nf3 {[%clk
1:32:49]} 7... Bd6 {[%clk 1:28:22]} 8. O-O {[%clk 1:32:44]} 8... O-O {[%clk
1:27:12]} 9. Bg5 {[%clk 1:31:26]} 9... h6 {[%clk 1:25:55]} 10. Bh4 {[%clk
1:31:40]} 10... Bd7 {[%clk 1:24:32]} 11. Re1 {[%clk 1:28:51]} 11... Be7 {[%clk
1:16:58]} 12. Nbd2 {[%clk 1:25:53]} 12... Qc7 {[%clk 1:11:23]} 13. Ne5 {[%clk
1:19:39]} 13... Rac8 {[%clk 1:08:22]} 14. Ndf3 {[%clk 1:17:08]} 14... Rfd8
{[%clk 1:02:42]} 15. Rc1 {[%clk 1:09:59]} 15... Na5 {[%clk 0:50:01]} 16. b3
{[%clk 0:58:51]} 16... a6 {[%clk 0:45:29]} 17. Qd2 {[%clk 0:46:08]} 17... Qb6
{[%clk 0:34:12]} 18. Ng4 {[%clk 0:40:23]} 18... Nxg4 {[%clk 0:13:45]} 19. Bxe7
{[%clk 0:40:29]} 19... Re8 {[%clk 0:13:49]} 20. Bc5 {[%clk 0:40:45]} 20... Qc7
{[%clk 0:12:34]} 21. hxg4 {[%clk 0:40:58]} 21... b6 {[%clk 0:12:10]} 22. Bb4
{[%clk 0:41:04]} 22... b5 {[%clk 0:11:48]} 23. Ne5 {[%clk 0:40:07]} 23... Nc6
{[%clk 0:11:43]} 24. Ba3 {[%clk 0:37:20]} 24... Nxe5 {[%clk 0:11:01]} 25. dxe5
{[%clk 0:37:37]} 25... Qa5 {[%clk 0:09:41]} 26. Bb4 {[%clk 0:36:32]} 26... Qc7
{[%clk 0:09:54]} 27. g5 {[%clk 0:35:55]} 27... hxg5 {[%clk 0:09:02]} 28. Qxg5
{[%clk 0:36:13]} 28... g6 {[%clk 0:07:10]} 29. Bxg6 {[%clk 0:34:03]} 29... fxg6
{[%clk 0:06:31]} 30. Qxg6+ {[%clk 0:34:27]} 30... Kh8 {[%clk 0:06:40]} 31. Re3
{[%clk 0:34:38]} 1-0

[Variant "Standard"]
[Site "Europe Echecs"]

[Event "Championnat du monde jeunes U12F"]
[Date "2024.11.22"]
[White "Hiznicenco, Valeria"]
[Black "Groselj, Mirjam"]
[WhiteElo "1513"]
[BlackElo "1470"]
[Round "7.42"]
[Result "1/2-1/2"]
[TimeControl "5400+30"]

1. e4 {[%clk 1:30:57]} 1... e5 {[%clk 1:30:48]} 2. Nf3 {[%clk 1:31:11]} 2... Nc6
{[%clk 1:31:06]} 3. Nc3 {[%clk 1:30:56]} 3... Nf6 {[%clk 1:30:58]} 4. a3 {[%clk
1:31:14]} 4... Bc5 {[%clk 1:30:15]} 5. Nxe5 {[%clk 1:30:46]} 5... Nxe5 {[%clk
1:29:23]} 6. d4 {[%clk 1:30:57]} 6... Bxd4 {[%clk 1:29:13]} 7. Qxd4 {[%clk
1:31:04]} 7... Nc6 {[%clk 1:27:48]} 8. Qd1 {[%clk 1:30:20]} 8... h6 {[%clk
1:27:34]} 9. Bc4 {[%clk 1:28:54]} 9... O-O {[%clk 1:25:59]} 10. O-O {[%clk
1:29:10]} 10... d6 {[%clk 1:25:52]} 11. f3 {[%clk 1:18:59]} 11... Be6 {[%clk
1:24:13]} 12. Nd5 {[%clk 1:14:15]} 12... Ne5 {[%clk 1:16:30]} 13. Nxf6+ {[%clk
1:09:54]} 13... Qxf6 {[%clk 1:16:07]} 14. Bxe6 {[%clk 1:09:32]} 14... fxe6
{[%clk 1:15:14]} 15. Bd2 {[%clk 1:00:37]} 15... Rf7 {[%clk 1:11:49]} 16. Bc3
{[%clk 0:58:32]} 16... Raf8 {[%clk 1:08:07]} 1/2-1/2

[Variant "Standard"]
[Site "Europe Echecs"]

[Event "Championnat du monde jeunes U12F"]
[Date "2024.11.22"]
[White "Petrusic, Dusica"]
[Black "Liu, Lillian Yu-Ning"]
[WhiteElo "1498"]
[BlackElo "1456"]
[Round "7.43"]
[Result "1/2-1/2"]
[TimeControl "5400+30"]

1. e4 {[%clk 1:30:57]} 1... e5 {[%clk 1:30:53]} 2. Nf3 {[%clk 1:31:18]} 2... Nc6
{[%clk 1:31:13]} 3. Bb5 {[%clk 1:31:39]} 3... a6 {[%clk 1:31:33]} 4. Ba4 {[%clk
1:32:01]} 4... Nf6 {[%clk 1:31:51]} 5. d3 {[%clk 1:32:22]} 5... h6 {[%clk
1:32:09]} 6. O-O {[%clk 1:32:32]} 6... b5 {[%clk 1:31:56]} 7. Bb3 {[%clk
1:32:52]} 7... Be7 {[%clk 1:31:42]} 8. c3 {[%clk 1:32:15]} 8... O-O {[%clk
1:29:31]} 9. Re1 {[%clk 1:31:42]} 9... d6 {[%clk 1:03:05]} 10. h3 {[%clk
1:30:13]} 10... Be6 {[%clk 0:45:52]} 11. Bc2 {[%clk 1:29:45]} 11... Qd7 {[%clk
0:22:38]} 12. Kh2 {[%clk 1:21:10]} 12... d5 {[%clk 0:14:43]} 13. Nbd2 {[%clk
1:15:52]} 13... Bd6 {[%clk 0:09:20]} 14. Nf1 {[%clk 1:10:54]} 14... b4 {[%clk
0:05:32]} 15. Ng3 {[%clk 1:06:34]} 15... a5 {[%clk 0:03:32]} 16. Nh4 {[%clk
0:58:36]} 16... d4 {[%clk 0:02:43]} 17. c4 {[%clk 0:56:35]} 17... Ne7 {[%clk
0:02:10]} 18. Qf3 {[%clk 0:52:30]} 18... a4 {[%clk 0:01:15]} 19. Bxh6 {[%clk
0:48:21]} 19... gxh6 {[%clk 0:01:36]} 20. Qxf6 {[%clk 0:48:34]} 20... Kh7 {[%clk
0:01:25]} 21. Nhf5 {[%clk 0:44:17]} 21... Nxf5 {[%clk 0:01:39]} 22. Nxf5 {[%clk
0:44:37]} 22... Bxf5 {[%clk 0:02:02]} 23. Qxf5+ {[%clk 0:44:10]} 23... Qxf5
{[%clk 0:02:25]} 24. exf5 {[%clk 0:44:34]} 24... e4+ {[%clk 0:02:38]} 25. Kg1
{[%clk 0:44:21]} 25... exd3 {[%clk 0:03:00]} 26. Bxd3 {[%clk 0:44:26]} 26... a3
{[%clk 0:02:49]} 27. b3 {[%clk 0:39:14]} 27... Rfe8 {[%clk 0:02:45]} 1/2-1/2

[Variant "Standard"]
[Site "Europe Echecs"]

[Event "Championnat du monde jeunes U12F"]
[Date "2024.11.23"]
[White "Allahverdi, Zahra"]
[Black "Venskaya, Nika"]
[WhiteElo "1718"]
[BlackElo "1871"]
[Round "8.1"]
[Result "0-1"]
[TimeControl "5400+30"]

1. e4 {[%clk 1:30:56]} 1... d6 {[%clk 1:29:06]} 2. d4 {[%clk 1:31:14]} 2... Nf6
{[%clk 1:29:32]} 3. Nc3 {[%clk 1:31:36]} 3... g6 {[%clk 1:29:54]} 4. Nf3 {[%clk
1:31:49]} 4... Bg7 {[%clk 1:30:11]} 5. Bc4 {[%clk 1:31:39]} 5... c6 {[%clk
1:27:44]} 6. a4 {[%clk 1:30:48]} 6... O-O {[%clk 1:25:34]} 7. O-O {[%clk
1:30:16]} 7... Qc7 {[%clk 1:20:56]} 8. e5 {[%clk 1:26:00]} 8... dxe5 {[%clk
1:14:36]} 9. Nxe5 {[%clk 1:25:56]} 9... Nbd7 {[%clk 1:12:08]} 10. Qe2 {[%clk
1:21:50]} 10... Nb6 {[%clk 0:51:07]} 11. Bb3 {[%clk 1:20:14]} 11... Nbd5 {[%clk
0:46:06]} 12. Nxd5 {[%clk 1:13:59]} 12... Nxd5 {[%clk 0:41:26]} 13. c4 {[%clk
1:07:34]} 13... Nf6 {[%clk 0:36:00]} 14. Bd2 {[%clk 1:01:13]} 14... Bf5 {[%clk
0:30:02]} 15. g4 {[%clk 0:46:21]} 15... Be6 {[%clk 0:23:43]} 16. a5 {[%clk
0:44:52]} 16... Rad8 {[%clk 0:17:06]} 17. Bc3 {[%clk 0:43:40]} 17... Qc8 {[%clk
0:17:24]} 18. f3 {[%clk 0:40:50]} 18... Ne8 {[%clk 0:13:27]} 19. Qf2 {[%clk
0:37:09]} 19... f6 {[%clk 0:12:53]} 20. Nd3 {[%clk 0:37:19]} 20... Bf7 {[%clk
0:13:01]} 21. Rad1 {[%clk 0:32:25]} 21... Nd6 {[%clk 0:12:25]} 22. Nc5 {[%clk
0:30:12]} 22... b6 {[%clk 0:10:12]} 23. axb6 {[%clk 0:29:14]} 23... axb6 {[%clk
0:10:38]} 24. Na4 {[%clk 0:29:29]} 24... b5 {[%clk 0:10:59]} 25. Ba5 {[%clk
0:25:19]} 25... bxa4 {[%clk 0:10:27]} 26. Bxd8 {[%clk 0:25:41]} 26... Rxd8
{[%clk 0:10:41]} 27. Bxa4 {[%clk 0:26:04]} 27... Bxc4 {[%clk 0:09:06]} 28. Rfe1
{[%clk 0:25:55]} 28... Qc7 {[%clk 0:08:48]} 29. Qe3 {[%clk 0:25:21]} 29... Bf8
{[%clk 0:08:01]} 30. Rc1 {[%clk 0:24:25]} 30... Bf7 {[%clk 0:06:36]} 31. Bb3
{[%clk 0:21:50]} 31... Qb6 {[%clk 0:06:11]} 32. Rc3 {[%clk 0:20:15]} 32... Nb5
{[%clk 0:05:24]} 33. Bxf7+ {[%clk 0:18:44]} 33... Kxf7 {[%clk 0:05:53]} 34. Qe6+
{[%clk 0:17:15]} 34... Kg7 {[%clk 0:06:22]} 35. Qxc6 {[%clk 0:16:18]} 35...
Qxd4+ {[%clk 0:05:38]} 36. Rce3 {[%clk 0:15:57]} 36... Nd6 {[%clk 0:05:47]} 37.
Kh1 {[%clk 0:15:43]} 37... Nf7 {[%clk 0:05:12]} 38. Qc3 {[%clk 0:15:40]} 38...
Qf4 {[%clk 0:04:45]} 39. b4 {[%clk 0:14:45]} 39... Rb8 {[%clk 0:03:49]} 40. Re4
{[%clk 0:14:55]} 40... Qd6 {[%clk 0:02:39]} 41. Rd4 {[%clk 0:14:36]} 41... Qb6
{[%clk 0:02:23]} 42. Rb1 {[%clk 0:11:49]} 42... Nd6 {[%clk 0:02:10]} 43. Qd2
{[%clk 0:11:17]} 43... Qc6 {[%clk 0:01:25]} 44. Qd3 {[%clk 0:09:49]} 44... Rb5
{[%clk 0:01:18]} 45. Qb3 {[%clk 0:05:57]} 45... h5 {[%clk 0:00:40]} 46. h3
{[%clk 0:02:39]} 46... Re5 {[%clk 0:00:33]} 47. Rd2 {[%clk 0:00:58]} 47... Qb6
{[%clk 0:00:42]} 48. gxh5 {[%clk 0:00:34]} 48... Rxh5 {[%clk 0:01:00]} 49. Rh2
{[%clk 0:00:35]} 49... Nf5 {[%clk 0:01:01]} 0-1

[Variant "Standard"]
[Site "Europe Echecs"]

[Event "Championnat du monde jeunes U12F"]
[Date "2024.11.23"]
[White "Xue, Tianhao"]
[Black "Tong Thai Hoang An"]
[WhiteElo "1835"]
[BlackElo "1869"]
[Round "8.2"]
[Result "1-0"]
[TimeControl "5400+30"]

1. e4 {[%clk 1:30:58]} 1... c5 {[%clk 1:30:48]} 2. Nf3 {[%clk 1:31:24]} 2... d6
{[%clk 1:31:09]} 3. d4 {[%clk 1:31:48]} 3... cxd4 {[%clk 1:31:35]} 4. Nxd4
{[%clk 1:32:14]} 4... Nf6 {[%clk 1:31:56]} 5. Nc3 {[%clk 1:32:38]} 5... g6
{[%clk 1:31:48]} 6. Be3 {[%clk 1:32:54]} 6... a6 {[%clk 1:32:06]} 7. f3 {[%clk
1:32:32]} 7... h5 {[%clk 1:32:30]} 8. Qd2 {[%clk 1:31:59]} 8... Bg7 {[%clk
1:32:37]} 9. h3 {[%clk 1:32:16]} 9... b5 {[%clk 1:30:35]} 10. a4 {[%clk
1:31:45]} 10... bxa4 {[%clk 1:23:52]} 11. Nxa4 {[%clk 1:31:40]} 11... Nbd7
{[%clk 1:18:51]} 12. Be2 {[%clk 1:27:10]} 12... Bb7 {[%clk 1:14:51]} 13. O-O
{[%clk 1:24:41]} 13... d5 {[%clk 1:12:44]} 14. exd5 {[%clk 1:10:45]} 14... Nxd5
{[%clk 1:12:26]} 15. Bf2 {[%clk 1:10:24]} 15... Bh6 {[%clk 1:05:37]} 16. Qd3
{[%clk 1:02:40]} 16... e5 {[%clk 1:02:02]} 17. Qb3 {[%clk 0:38:26]} 17... Nf4
{[%clk 0:35:21]} 18. Qxb7 {[%clk 0:37:10]} 18... O-O {[%clk 0:28:37]} 19. g3
{[%clk 0:29:19]} 19... Nxh3+ {[%clk 0:19:52]} 20. Kg2 {[%clk 0:29:20]} 20...
Nxf2 {[%clk 0:18:07]} 21. Nc6 {[%clk 0:29:30]} 21... Qg5 {[%clk 0:15:53]} 22.
Qxd7 {[%clk 0:28:07]} 22... h4 {[%clk 0:07:43]} 23. Rxf2 {[%clk 0:27:17]} 23...
f5 {[%clk 0:05:02]} 24. Qe6+ {[%clk 0:26:45]} 24... Kh8 {[%clk 0:04:28]} 25.
Qxe5+ {[%clk 0:26:57]} 25... Rf6 {[%clk 0:04:49]} 26. Rh1 {[%clk 0:26:07]} 26...
Qxg3+ {[%clk 0:04:23]} 27. Qxg3 {[%clk 0:26:23]} 27... hxg3 {[%clk 0:04:48]} 28.
Kxg3 {[%clk 0:26:32]} 28... Rxc6 {[%clk 0:04:57]} 29. Rxh6+ {[%clk 0:26:43]}
29... Kg7 {[%clk 0:05:24]} 30. Rfh2 {[%clk 0:26:39]} 30... Rxc2 {[%clk 0:05:48]}
31. Rh7+ {[%clk 0:26:58]} 31... Kf6 {[%clk 0:06:09]} 32. Nb6 {[%clk 0:26:30]}
32... Rd8 {[%clk 0:06:16]} 33. Nd7+ {[%clk 0:25:32]} 33... Ke6 {[%clk 0:06:22]}
34. b4 {[%clk 0:25:37]} 34... Kd6 {[%clk 0:05:31]} 35. Nc5 {[%clk 0:25:54]}
35... Re8 {[%clk 0:05:14]} 36. Rd7+ {[%clk 0:25:56]} 36... Ke5 {[%clk 0:05:37]}
37. f4+ {[%clk 0:25:49]} 37... Kf6 {[%clk 0:05:45]} 38. Rhh7 {[%clk 0:25:45]}
38... Rxc5 {[%clk 0:05:00]} 39. Rhf7+ {[%clk 0:26:03]} 39... Ke6 {[%clk
0:05:26]} 40. bxc5 {[%clk 0:26:28]} 1-0

[Variant "Standard"]
[Site "Europe Echecs"]

[Event "Championnat du monde jeunes U12F"]
[Date "2024.11.23"]
[White "Amanzhol, Khanzada"]
[Black "Tran Le Vy"]
[WhiteElo "1780"]
[BlackElo "1854"]
[Round "8.3"]
[Result "1-0"]
[TimeControl "5400+30"]

1. e4 {[%clk 1:30:39]} 1... e5 {[%clk 1:30:52]} 2. Nf3 Nc6 {[%clk 1:31:01]} 3.
d4 exd4 {[%clk 1:31:20]} 4. Nxd4 {[%clk 1:31:24]} 4... Bc5 {[%clk 1:31:40]} 5.
Be3 {[%clk 1:31:30]} 5... Qf6 {[%clk 1:31:59]} 6. Nb5 {[%clk 1:31:29]} 6... Bxe3
{[%clk 1:29:12]} 7. fxe3 {[%clk 1:31:53]} 7... Qh4+ {[%clk 1:26:55]} 8. g3
{[%clk 1:32:12]} 8... Qxe4 {[%clk 1:05:52]} 9. Nxc7+ {[%clk 1:32:24]} 9... Kd8
{[%clk 0:50:17]} 10. Nxa8 {[%clk 1:32:47]} 10... Qxh1 {[%clk 0:45:38]} 11. Qd6
{[%clk 1:33:12]} 11... Nf6 {[%clk 0:43:06]} 12. Nc3 {[%clk 1:32:19]} 12... Qf3
{[%clk 0:39:59]} 13. Qc7+ {[%clk 1:32:25]} 13... Ke7 {[%clk 0:39:25]} 14. Qf4
{[%clk 1:31:39]} 14... Qxf4 {[%clk 0:38:14]} 15. exf4 {[%clk 1:31:44]} 15... Kd8
{[%clk 0:31:20]} 16. O-O-O {[%clk 1:32:08]} 16... b6 {[%clk 0:26:04]} 17. Nb5
{[%clk 1:32:12]} 17... Bb7 {[%clk 0:16:33]} 18. Nd6 {[%clk 1:32:26]} 18... Bxa8
{[%clk 0:17:01]} 19. Nxf7+ {[%clk 1:32:50]} 19... Ke7 {[%clk 0:17:22]} 20. Nxh8
{[%clk 1:33:16]} 20... Kf8 {[%clk 0:16:50]} 21. g4 {[%clk 1:30:38]} 21... Ne7
{[%clk 0:16:20]} 22. g5 {[%clk 1:26:03]} 22... Nfd5 {[%clk 0:15:32]} 23. c4
{[%clk 1:21:24]} 23... Nxf4 {[%clk 0:14:37]} 24. Rxd7 {[%clk 1:21:04]} 24... Ne6
{[%clk 0:14:40]} 25. Bh3 {[%clk 1:20:53]} 25... Bc6 {[%clk 0:14:58]} 26. Rd6
{[%clk 1:17:02]} 26... Nc5 {[%clk 0:10:33]} 27. Rd8+ {[%clk 1:14:00]} 27... Be8
{[%clk 0:10:55]} 28. b4 {[%clk 1:13:36]} 28... Nc6 {[%clk 0:11:11]} 29. Rc8
{[%clk 1:07:14]} 29... Nxb4 {[%clk 0:10:37]} 30. g6 {[%clk 1:06:48]} 30... Nbd3+
{[%clk 0:10:56]} 31. Kd2 {[%clk 1:06:17]} 31... hxg6 {[%clk 0:10:53]} 32. Nxg6+
{[%clk 1:06:09]} 32... Kf7 {[%clk 0:11:11]} 33. Bf5 {[%clk 1:05:17]} 33... Nb4
{[%clk 0:09:06]} 34. Bb1 {[%clk 1:02:56]} 34... a5 {[%clk 0:07:06]} 35. a3
{[%clk 1:01:07]} 35... Nba6 {[%clk 0:07:17]} 36. Ke3 {[%clk 0:59:41]} 36... Ba4
{[%clk 0:06:35]} 37. Bf5 {[%clk 0:57:56]} 37... Ne6 {[%clk 0:06:00]} 38. Bxe6+
{[%clk 0:56:30]} 38... Kxe6 {[%clk 0:06:21]} 39. Nf4+ {[%clk 0:56:48]} 39... Ke5
{[%clk 0:05:47]} 40. Nd5 {[%clk 0:56:46]} 40... Bc2 {[%clk 0:04:46]} 41. Nxb6
{[%clk 0:56:49]} 41... g6 {[%clk 0:04:32]} 42. Ra8 {[%clk 0:56:47]} 42... Nc5
{[%clk 0:04:47]} 43. Rxa5 {[%clk 0:57:10]} 43... Kd6 {[%clk 0:05:13]} 44. Nd5
{[%clk 0:56:29]} 44... Bf5 {[%clk 0:04:36]} 45. Rb5 {[%clk 0:55:58]} 45... Na4
{[%clk 0:03:00]} 46. Kd4 {[%clk 0:56:08]} 46... Bd7 {[%clk 0:03:23]} 47. Ra5
{[%clk 0:55:41]} 47... g5 {[%clk 0:03:25]} 48. Ra6+ {[%clk 0:55:58]} 48... Bc6
{[%clk 0:03:44]} 49. Nb4 {[%clk 0:56:19]} 49... Nb2 {[%clk 0:04:08]} 50. Rxc6+
{[%clk 0:56:44]} 50... Kd7 {[%clk 0:04:33]} 51. Rg6 {[%clk 0:57:04]} 51... Na4
{[%clk 0:04:54]} 52. Rxg5 {[%clk 0:57:30]} 52... Ke7 {[%clk 0:05:16]} 53. h4
{[%clk 0:57:56]} 53... Kf6 {[%clk 0:05:34]} 54. Nd5+ {[%clk 0:58:21]} 54... Kf7
{[%clk 0:05:59]} 55. h5 {[%clk 0:58:46]} 55... Nb2 {[%clk 0:06:18]} 56. h6
{[%clk 0:59:12]} 56... Na4 {[%clk 0:06:31]} 57. h7 {[%clk 0:59:38]} 57... Nb2
{[%clk 0:06:56]} 58. h8=Q {[%clk 1:00:02]} 58... Na4 {[%clk 0:07:22]} 59. Qf6+
{[%clk 1:00:08]} 59... Ke8 {[%clk 0:07:46]} 60. Qe7# {[%clk 1:00:35]} 1-0

[Variant "Standard"]
[Site "Europe Echecs"]